bitfinex/quotes_BTCUSD_20241222
["timestamp","ask_amount","ask_price","bid_price","bid_amount"]
[1734868470371,0.02426039,97264.0,97259.0,0.00803316]
[1734868471503,0.02426039,97264.0,97258.0,0.00206061]
[1734868471660,0.02526039,97264.0,97258.0,0.00206061]
[1734868471868,0.02426039,97264.0,97258.0,0.00206061]
[1734868472082,0.02526039,97264.0,97258.0,0.00206061]
[1734868472634,0.02426039,97264.0,97258.0,0.00206061]
[1734868473011,0.02526039,97264.0,97258.0,0.00206061]
[1734868473983,0.02426039,97264.0,97258.0,0.00206061]
[1734868474386,0.02526039,97264.0,97258.0,0.00206061]
[1734868474843,0.02426039,97264.0,97258.0,0.00206061]
[1734868475148,0.02526039,97264.0,97258.0,0.00206061]
[1734868475305,0.02426039,97264.0,97258.0,0.00206061]
[1734868475487,0.02526039,97264.0,97258.0,0.00206061]
[1734868475692,0.02426039,97264.0,97258.0,0.00206061]
[1734868476319,0.02426039,97264.0,97259.0,0.0080731]
[1734868477148,0.02526039,97264.0,97259.0,0.0080731]
[1734868477546,0.02426039,97264.0,97259.0,0.0080731]
[1734868477747,0.02526039,97264.0,97259.0,0.0080731]
[1734868477953,0.02426039,97264.0,97259.0,0.0080731]
[1734868478154,0.00026039,97264.0,97259.0,0.0080731]
[1734868478380,0.02526039,97264.0,97259.0,0.0080731]
[1734868478970,0.02426039,97264.0,97259.0,0.0080731]
[1734868479564,0.02426039,97264.0,97258.0,0.00206061]
[1734868479790,0.02426039,97264.0,97260.0,0.00811148]
[1734868479992,0.02426039,97264.0,97258.0,0.00206061]
[1734868480199,0.02426039,97264.0,97261.0,0.00811082]
[1734868480436,0.02526039,97264.0,97258.0,0.00206061]
[1734868480845,0.02426039,97264.0,97259.0,0.00811289]
[1734868481609,0.02526039,97264.0,97259.0,0.00811289]
[1734868482013,0.02326039,97264.0,97259.0,0.00811289]
[1734868482216,0.02526039,97264.0,97259.0,0.00811289]
[1734868495074,0.02426039,97264.0,97259.0,0.00811289]
[1734868495637,0.00026039,97264.0,97259.0,0.00811289]
[1734868497159,0.02426039,97264.0,97259.0,0.00811289]
[1734868497768,0.00026039,97264.0,97259.0,0.00811289]
[1734868497941,0.00126039,97264.0,97259.0,0.00811289]
[1734868498152,0.02426039,97264.0,97259.0,0.00811289]
[1734868506492,0.03087404,97263.0,97258.0,0.00206061]
[1734868506864,0.03087404,97263.0,97259.0,0.00823835]
[1734868507064,0.03087404,97262.0,97259.0,0.00823835]
[1734868507798,0.03087404,97261.0,97259.0,0.00823835]
[1734868508159,0.03087404,97260.0,97259.0,0.00823835]
[1734868508599,0.03087404,97260.0,97258.0,0.00206061]
[1734868509009,0.03087404,97260.0,97259.0,0.0082413]
[1734868509563,0.03087404,97260.0,97259.0,0.0092413]
[1734868510398,0.05017248,97260.0,97259.0,0.0092413]
[1734868512837,0.05017248,97260.0,97259.0,0.0905413]
[1734868519664,0.05017248,97260.0,97259.0,0.0092413]
[1734868521749,0.05034388,97260.0,97259.0,0.0092413]
[1734868527699,0.05034388,97260.0,97259.0,0.0082413]
[1734868528161,0.05134388,97260.0,97259.0,0.0082413]
[1734868528333,0.05134388,97260.0,97258.0,0.00206061]
[1734868528535,0.05034388,97260.0,97259.0,0.00823566]
[1734868528949,0.05134388,97260.0,97259.0,0.00823566]
[1734868530556,0.05134388,97260.0,97258.0,0.00206061]
[1734868530756,0.05134388,97260.0,97259.0,0.00823566]
[1734868531576,0.05034388,97260.0,97259.0,0.00823566]
[1734868532393,0.05134388,97260.0,97259.0,0.00823566]
[1734868532731,0.05134388,97260.0,97258.0,0.00206061]
[1734868532957,0.05134388,97260.0,97259.0,0.00824313]
[1734868533859,0.05034388,97260.0,97259.0,0.00824313]
[1734868534063,0.05134388,97260.0,97259.0,0.00824313]
[1734868535272,0.0011714,97260.0,97259.0,0.00824313]
[1734868535528,0.05135129,97260.0,97259.0,0.00824313]
[1734868535894,0.20135129,97260.0,97258.0,0.00206061]
[1734868536766,0.20017989,97259.0,97258.0,0.00206061]
[1734868538010,0.05117989,97259.0,97258.0,0.00206061]
[1734868540377,0.205638,97258.0,97257.0,0.00206061]
[1734868540648,0.355638,97258.0,97257.0,0.00206061]
[1734868541234,0.40581789,97258.0,97257.0,0.00206061]
[1734868541644,0.40581789,97258.0,97257.0,0.00306061]
[1734868542027,0.49843779,97258.0,97257.0,0.00306061]
[1734868543216,0.40581789,97258.0,97257.0,0.00306061]
[1734868556338,0.355638,97258.0,97257.0,0.00306061]
[1734868556736,0.40577266,97258.0,97257.0,0.00306061]
[1734868557305,0.355638,97258.0,97257.0,0.00306061]
[1734868557928,0.3558094,97258.0,97257.0,0.001]
[1734868558128,0.3788094,97258.0,97257.0,0.001]
[1734868558363,0.42894562,97258.0,97257.0,0.001]
[1734868559202,0.52156552,97258.0,97257.0,0.001]
[1734868559602,0.4714293,97258.0,97257.0,0.001]
[1734868559796,0.52156737,97258.0,97257.0,0.001]
[1734868560407,0.42894747,97258.0,97257.0,0.001]
[1734868562560,0.60525587,97258.0,97257.0,0.001]
[1734868562693,5.70305587,97258.0,97257.0,0.001]
[1734868562903,0.35568,97238.0,97232.0,0.00206061]
[1734868563101,0.35568,97238.0,97229.0,0.09248794]
[1734868563102,0.35568,97238.0,97230.0,0.00206061]
[1734868563326,0.35568,97238.0,97233.0,0.00206061]
[1734868563534,0.35568,97238.0,97234.0,0.00206061]
[1734868563741,0.40581807,97238.0,97235.0,0.00206061]
[1734868564273,0.40581807,97238.0,97237.0,0.0060857]
[1734868564476,0.42881807,97238.0,97237.0,0.0060857]
[1734868564848,0.42881807,97238.0,97237.0,0.0080857]
[1734868565445,0.43911681,97238.0,97237.0,0.0080857]
[1734868566183,0.43911681,97238.0,97237.0,0.0020857]
[1734868566394,0.43911681,97238.0,97237.0,0.0030857]
[1734868566739,0.43911681,97238.0,97237.0,0.0010857]
[1734868567833,0.43911681,97238.0,97237.0,8.57e-05]
[1734868568005,0.44011681,97238.0,97237.0,8.57e-05]
[1734868568509,0.43911681,97238.0,97237.0,8.57e-05]
[1734868569112,0.44011681,97238.0,97237.0,8.57e-05]
[1734868569520,0.43911681,97238.0,97237.0,8.57e-05]
[1734868569705,0.44011681,97238.0,97237.0,8.57e-05]
[1734868570534,0.44111681,97238.0,97237.0,8.57e-05]
[1734868575939,0.08543681,97238.0,97237.0,8.57e-05]
[1734868577193,0.23543681,97238.0,97237.0,8.57e-05]
[1734868603515,0.08543681,97238.0,97237.0,8.57e-05]
[1734868603988,0.08543681,97238.0,97237.0,0.00885787]
[1734868604174,0.08543681,97238.0,97237.0,8.57e-05]
[1734868604663,0.08543681,97238.0,97237.0,0.00885787]
[1734868606819,0.08543681,97238.0,97237.0,8.57e-05]
[1734868609019,0.23543681,97238.0,97237.0,8.57e-05]
[1734868610621,0.08543681,97238.0,97237.0,8.57e-05]
[1734868613034,0.32805072,97238.0,97237.0,8.57e-05]
[1734868614042,0.23543681,97238.0,97237.0,8.57e-05]
[1734868614267,0.08543681,97238.0,97237.0,8.57e-05]
[1734868615363,0.08543681,97238.0,97237.0,0.00885994]
[1734868615566,0.08543681,97238.0,97237.0,8.57e-05]
[1734868615997,0.08543681,97238.0,97237.0,0.00885994]
[1734868616198,0.08543681,97238.0,97237.0,8.57e-05]
[1734868616415,0.17805611,97238.0,97237.0,0.00885994]
[1734868616600,0.32805611,97238.0,97237.0,8.57e-05]
[1734868616804,0.32805611,97238.0,97237.0,0.00885994]
[1734868617015,0.32805611,97238.0,97237.0,8.57e-05]
[1734868617310,0.32805611,97238.0,97237.0,0.00885994]
[1734868617558,0.32805611,97238.0,97237.0,8.57e-05]
[1734868617767,0.32805611,97238.0,97237.0,0.00885994]
[1734868617967,0.32805611,97238.0,97237.0,8.57e-05]
[1734868618123,0.32805611,97238.0,97237.0,0.00885994]
[1734868618318,0.32805611,97238.0,97237.0,8.57e-05]
[1734868618681,0.32805611,97238.0,97237.0,0.00885994]
[1734868618881,0.32805611,97238.0,97237.0,8.57e-05]
[1734868619738,0.27791804,97238.0,97237.0,8.57e-05]
[1734868619938,0.32810872,97238.0,97237.0,8.57e-05]
[1734868620241,0.23548942,97238.0,97237.0,8.57e-05]
[1734868620447,0.08548942,97238.0,97237.0,8.57e-05]
[1734868623089,0.05219068,97238.0,97237.0,0.08054631]
[1734868623388,0.05219068,97238.0,97237.0,0.22824631]
[1734868623605,0.05219068,97238.0,97237.0,0.23702055]
[1734868623813,0.14483198,97238.0,97237.0,0.23702055]
[1734868624018,0.14483198,97238.0,97237.0,0.33832895]
[1734868625045,0.05119068,97238.0,97237.0,0.33832895]
[1734868625262,0.02030411,97238.0,97237.0,0.33832895]
[1734868625466,0.02030411,97238.0,97237.0,0.34032895]
[1734868625662,0.02030411,97238.0,97237.0,0.33832895]
[1734868625864,0.01930411,97238.0,97237.0,0.33832895]
[1734868626066,0.02030411,97238.0,97237.0,0.34332895]
[1734868626225,0.02030411,97238.0,97237.0,0.64368473]
[1734868626631,0.01930411,97238.0,97237.0,0.64368473]
[1734868627010,0.01930411,97238.0,97237.0,0.64568473]
[1734868627322,0.01930411,97238.0,97237.0,0.64068473]
[1734868627530,0.01930411,97238.0,97237.0,0.33832895]
[1734868627731,0.03082518,97252.0,97251.0,0.38611361]
[1734868628153,0.05007689,97252.0,97251.0,0.3948654]
[1734868629149,0.01925171,97252.0,97251.0,0.3948654]
[1734868629350,0.01925171,97252.0,97251.0,0.3978654]
[1734868629776,0.05007689,97252.0,97251.0,0.3988654]
[1734868630378,0.01925171,97252.0,97251.0,0.3988654]
[1734868636106,0.01925171,97252.0,97251.0,0.4465654]
[1734868636720,0.01925171,97252.0,97251.0,0.5478738]
[1734868637735,0.01925171,97252.0,97251.0,0.5468738]
[1734868638150,0.01925171,97256.0,97251.0,0.2608208]
[1734868638303,0.01925171,97256.0,97255.0,0.1]
[1734868638510,0.01925171,97256.0,97255.0,0.29360894]
[1734868638713,0.01925171,97256.0,97255.0,0.29258092]
[1734868638914,0.01942311,97257.0,97256.0,0.305642]
[1734868639119,0.01942311,97257.0,97256.0,0.4069504]
[1734868639296,0.01942311,97257.0,97256.0,0.41562188]
[1734868639497,0.01942311,97257.0,97256.0,0.31431348]
[1734868639726,0.01942311,97257.0,97256.0,0.00867148]
[1734868639926,0.01942311,97257.0,97256.0,0.01073209]
[1734868640462,0.01942311,97257.0,97247.0,0.00206061]
[1734868640670,0.15,97255.0,97254.0,0.00206061]
[1734868641249,0.2000153,97255.0,97254.0,0.00206061]
[1734868641678,0.0500153,97255.0,97254.0,0.00206061]
[1734868642485,0.15,97253.0,97246.0,0.1]
[1734868642784,0.205653,97251.0,97246.0,0.1]
[1734868643417,0.0500153,97250.0,97246.0,0.1]
[1734868643812,0.023,97248.0,97246.0,0.00206061]
[1734868644023,0.023,97248.0,97217.0,0.1]
[1734868644024,0.173,97239.0,97234.0,0.00206061]
[1734868644169,0.46008,97238.0,97235.0,0.00206061]
[1734868644369,0.46008,97238.0,97223.0,0.1]
[1734868644549,0.46008,97238.0,97230.0,0.00206061]
[1734868644755,0.46008,97238.0,97223.0,0.1]
[1734868644976,0.5100953,97238.0,97230.0,0.00206061]
[1734868645177,0.5100953,97238.0,97237.0,0.0050857]
[1734868645390,0.5100953,97238.0,97237.0,8.57e-05]
[1734868646959,0.5100953,97238.0,97237.0,0.00214631]
[1734868647115,0.52052091,97238.0,97237.0,0.00214631]
[1734868647659,0.52152091,97238.0,97237.0,0.00214631]
[1734868648446,0.52052091,97238.0,97237.0,0.00214631]
[1734868649931,0.52252091,97238.0,97237.0,0.00214631]
[1734868650227,0.23544091,97238.0,97237.0,0.00214631]
[1734868650450,0.08344091,97238.0,97237.0,0.00214631]
[1734868651182,0.08544091,97238.0,97237.0,0.00214631]
[1734868651328,0.08544091,97238.0,97237.0,0.01087295]
[1734868651527,0.08344091,97238.0,97237.0,0.00214631]
[1734868653074,0.08544091,97238.0,97237.0,0.00214631]
[1734868653520,0.08344091,97238.0,97237.0,0.00214631]
[1734868653930,0.08544091,97238.0,97237.0,0.00214631]
[1734868655813,0.16684091,97238.0,97237.0,8.57e-05]
[1734868656022,0.31684091,97238.0,97237.0,8.57e-05]
[1734868656582,0.31684091,97238.0,97237.0,0.00214631]
[1734868657377,0.31684091,97238.0,97237.0,8.57e-05]
[1734868664174,0.08544091,97238.0,97237.0,8.57e-05]
[1734868678633,0.44112091,97238.0,97237.0,8.57e-05]
[1734868680314,0.15,97233.0,97232.0,0.00206061]
[1734868680819,0.2000153,97233.0,97232.0,0.00206061]
[1734868681537,0.20006936,97233.0,97232.0,0.00206061]
[1734868681914,0.20106936,97233.0,97232.0,0.00206061]
[1734868682368,0.05106936,97233.0,97232.0,0.00206061]
[1734868682868,0.05106936,97233.0,97232.0,0.00944011]
[1734868683049,0.05106936,97233.0,97232.0,0.00206061]
[1734868685900,0.40676036,97233.0,97232.0,0.00206061]
[1734868686273,0.40676036,97233.0,97232.0,0.00214631]
[1734868686599,0.20106936,97233.0,97232.0,0.00214631]
[1734868686800,0.05106936,97233.0,97232.0,0.00214631]
[1734868686960,0.05106936,97233.0,97232.0,0.00987758]
[1734868687163,0.05106936,97233.0,97232.0,0.00214631]
[1734868690013,0.20106936,97233.0,97232.0,0.00214631]
[1734868691145,0.05106936,97233.0,97232.0,0.00214631]
[1734868692350,0.05106936,97233.0,97232.0,8.57e-05]
[1734868692989,0.20106936,97233.0,97232.0,8.57e-05]
[1734868693952,0.56608812,97233.0,97232.0,8.57e-05]
[1734868695670,0.15,97231.0,97228.0,0.00206061]
[1734868696503,0.0500153,97230.0,97228.0,0.00206061]
[1734868696703,0.15,97229.0,97228.0,0.00206061]
[1734868697034,0.2000153,97229.0,97228.0,0.00206061]
[1734868697860,0.54203406,97229.0,97228.0,0.00206061]
[1734868698149,0.54203406,97229.0,97228.0,0.00306061]
[1734868698677,0.54203406,97229.0,97228.0,0.001]
[1734868698904,0.54203406,97229.0,97228.0,0.00306061]
[1734868699291,0.54203406,97229.0,97228.0,0.00314631]
[1734868699734,0.54203406,97229.0,97228.0,0.00214631]
[1734868700154,0.72726125,97229.0,97228.0,8.57e-05]
[1734868700348,0.72826125,97229.0,97228.0,8.57e-05]
[1734868701583,0.54303406,97229.0,97228.0,8.57e-05]
[1734868703032,0.54303406,97229.0,97228.0,0.00214631]
[1734868703798,0.72823394,97229.0,97228.0,0.00214631]
[1734868705425,0.54303406,97229.0,97228.0,0.00214631]
[1734868706243,0.54303406,97229.0,97228.0,8.57e-05]
[1734868708836,0.54303406,97229.0,97228.0,0.00214631]
[1734868709669,0.54303406,97229.0,97228.0,8.57e-05]
[1734868710021,0.54303406,97229.0,97228.0,0.00214631]
[1734868711449,0.2010153,97229.0,97228.0,0.00214631]
[1734868712818,0.33982333,97229.0,97228.0,0.00214631]
[1734868713455,0.33982333,97229.0,97228.0,8.57e-05]
[1734868713844,0.2010153,97229.0,97228.0,8.57e-05]
[1734868714504,0.151,97229.0,97228.0,8.57e-05]
[1734868714792,0.20112898,97229.0,97228.0,8.57e-05]
[1734868715246,0.54271619,97229.0,97228.0,8.57e-05]
[1734868720418,0.54271619,97229.0,97227.0,0.00204557]
[1734868720595,0.355702,97228.0,97227.0,0.00204557]
[1734868721106,0.40583098,97228.0,97227.0,0.00204557]
[1734868721351,0.54464168,97228.0,97227.0,0.00204557]
[1734868723175,0.4945127,97228.0,97227.0,0.00204557]
[1734868723583,0.51381151,97228.0,97227.0,0.00204557]
[1734868723795,0.5446896,97228.0,97227.0,0.00204557]
[1734868723988,0.5456896,97228.0,97227.0,0.00204557]
[1734868725095,0.4068789,97228.0,97227.0,0.00204557]
[1734868726112,0.4068789,97228.0,97224.0,8.57e-05]
[1734868726113,0.205704,97227.0,97224.0,8.57e-05]
[1734868726311,0.355704,97227.0,97224.0,8.57e-05]
[1734868726551,0.205708,97225.0,97224.0,8.57e-05]
[1734868726708,0.205708,97225.0,97224.0,0.00213127]
[1734868727130,0.2558849,97225.0,97224.0,0.00213127]
[1734868727337,0.34842949,97225.0,97224.0,8.57e-05]
[1734868727537,0.34842949,97225.0,97224.0,0.00213127]
[1734868728141,0.34942949,97225.0,97224.0,0.00213127]
[1734868728386,0.49942949,97225.0,97224.0,8.57e-05]
[1734868728940,0.49842949,97225.0,97224.0,8.57e-05]
[1734868729141,0.54470179,97225.0,97224.0,8.57e-05]
[1734868730330,0.74749241,97225.0,97224.0,8.57e-05]
[1734868730969,0.74849241,97225.0,97224.0,8.57e-05]
[1734868731548,0.74749241,97225.0,97224.0,8.57e-05]
[1734868731822,0.74949241,97225.0,97224.0,8.57e-05]
[1734868735933,1.00406758,97225.0,97224.0,8.57e-05]
[1734868736306,0.355721,97219.0,97218.0,0.00204557]
[1734868736667,0.205725,97217.0,97216.0,0.00204557]
[1734868737137,0.2559019,97217.0,97216.0,0.00204557]
[1734868737473,0.2559019,97217.0,97215.0,0.00204557]
[1734868737676,0.2559019,97217.0,97216.0,0.00619114]
[1734868737900,0.22502381,97217.0,97216.0,0.00619114]
[1734868738081,0.355725,97217.0,97216.0,0.00619114]
[1734868738278,0.355725,97217.0,97216.0,0.00719114]
[1734868738526,0.40586103,97217.0,97216.0,0.001]
[1734868739322,0.54470291,97217.0,97216.0,0.001]
[1734868740119,0.205735,97212.0,97211.0,0.10214557]
[1734868741226,0.205735,97212.0,97211.0,0.1001]
[1734868741672,0.205735,97212.0,97211.0,0.0021]
[1734868741673,0.355735,97212.0,97211.0,0.0021]
[1734868742171,0.378735,97212.0,97211.0,0.0021]
[1734868742754,0.42886324,97212.0,97211.0,0.0021]
[1734868743163,0.77046368,97212.0,97211.0,0.0021]
[1734868743917,0.74061553,97212.0,97211.0,0.0001]
[1734868744058,0.72133544,97212.0,97211.0,0.0001]
[1734868744248,0.73961534,97212.0,97211.0,0.0001]
[1734868744449,0.74975074,97212.0,97211.0,0.0001]
[1734868744668,0.78159859,97212.0,97211.0,0.0001]
[1734868745201,0.78059859,97212.0,97211.0,0.0001]
[1734868745402,1.01217376,97212.0,97211.0,0.0001]
[1734868745625,1.01417376,97212.0,97211.0,0.0001]
[1734868746872,1.01217376,97212.0,97211.0,0.0001]
[1734868747299,1.01517376,97212.0,97211.0,0.0001]
[1734868747521,0.58061295,97212.0,97211.0,0.0001]
[1734868747926,0.66031295,97212.0,97211.0,0.0001]
[1734868748129,0.66031295,97212.0,97211.0,0.0001857]
[1734868748873,0.70651788,97212.0,97211.0,0.0001857]
[1734868750037,0.52169815,97212.0,97211.0,0.0001857]
[1734868751560,0.61012066,97212.0,97211.0,0.0001857]
[1734868751760,0.61012066,97212.0,97203.0,0.00204557]
[1734868751761,0.205752,97204.0,97203.0,0.00204557]
[1734868752080,0.205752,97204.0,97203.0,0.00625393]
[1734868752308,0.378752,97204.0,97203.0,0.00625393]
[1734868752521,0.205767,97197.0,97196.0,0.00204557]
[1734868753024,0.25579623,97197.0,97196.0,0.00204557]
[1734868753225,0.25579623,97197.0,97196.0,0.10204557]
[1734868753623,0.25579623,97197.0,97196.0,0.10258777]
[1734868754097,0.25579623,97197.0,97196.0,0.10458777]
[1734868754650,0.25579623,97197.0,97196.0,0.1025422]
[1734868754651,0.27879623,97197.0,97196.0,0.1025422]
[1734868755190,0.28891266,97197.0,97196.0,0.1025422]
[1734868755469,0.28891266,97197.0,97196.0,0.0025422]
[1734868756242,0.28891266,97197.0,97196.0,0.0005422]
[1734868756492,0.28891266,97197.0,97196.0,0.0015422]
[1734868758842,0.61562106,97197.0,97196.0,0.0015422]
[1734868759072,0.61562106,97197.0,97191.0,0.0001]
[1734868759073,0.355778,97192.0,97191.0,0.0001]
[1734868759317,0.4800864,97192.0,97191.0,0.00020032]
[1734868759732,4.48511563,97192.0,97191.0,0.00020032]
[1734868759974,3.09711563,97192.0,97191.0,0.00020032]
[1734868760709,3.69770712,97192.0,97191.0,0.00020032]
[1734868761296,2.71770712,97192.0,97191.0,0.00020032]
[1734868761966,2.71570712,97192.0,97191.0,0.00020032]
[1734868762213,2.71970712,97192.0,97191.0,0.00028602]
[1734868762598,2.71970712,97192.0,97191.0,5.1e-05]
[1734868763206,2.72470712,97192.0,97191.0,0.001051]
[1734868763411,2.71970712,97192.0,97191.0,5.1e-05]
[1734868763630,2.63284182,97192.0,97191.0,5.1e-05]
[1734868763870,2.63784182,97192.0,97191.0,0.001051]
[1734868764755,2.63784182,97192.0,97171.0,0.0001]
[1734868764756,0.45452,97172.0,97171.0,0.0001]
[1734868764952,5.6513284,97172.0,97171.0,0.00017231]
[1734868765159,5.6513284,97172.0,97171.0,7.231e-05]
[1734868765373,5.70135763,97172.0,97171.0,7.231e-05]
[1734868766336,0.65135763,97172.0,97171.0,7.231e-05]
[1734868766544,5.70135763,97172.0,97171.0,7.231e-05]
[1734868766768,0.355862,97152.0,97151.0,0.0001857]
[1734868766967,0.355862,97152.0,97151.0,0.00024151]
[1734868767188,0.355862,97152.0,97151.0,0.00664161]
[1734868767473,0.40589123,97152.0,97151.0,0.00664161]
[1734868767919,0.40589123,97152.0,97151.0,0.00024151]
[1734868768160,0.40689123,97152.0,97151.0,0.00424151]
[1734868768407,0.40689123,97152.0,97151.0,0.00024151]
[1734868769128,0.41705959,97152.0,97151.0,0.00024151]
[1734868769785,0.41805959,97152.0,97151.0,0.00024151]
[1734868770506,0.44105959,97152.0,97151.0,0.00024151]
[1734868770745,0.54236799,97152.0,97151.0,0.00024151]
[1734868773711,0.41805959,97152.0,97151.0,0.00024151]
[1734868773940,0.06219759,97152.0,97151.0,0.00024151]
[1734868774142,0.06219759,97152.0,97151.0,0.00672747]
[1734868774380,0.05202923,97152.0,97151.0,0.18417304]
[1734868774613,0.05202923,97152.0,97151.0,0.10877304]
[1734868774614,0.02124201,97152.0,97151.0,0.10877304]
[1734868774860,0.02124201,97152.0,97151.0,0.00877304]
[1734868775202,0.05202923,97152.0,97151.0,0.00228708]
[1734868775637,0.05102923,97152.0,97151.0,0.00024151]
[1734868776540,0.06156636,97152.0,97151.0,0.00024151]
[1734868776744,0.06056636,97152.0,97151.0,0.00024151]
[1734868776913,0.06156636,97152.0,97151.0,0.00024151]
[1734868777701,0.06256636,97152.0,97151.0,0.00024151]
[1734868777924,0.06156636,97152.0,97151.0,0.00024151]
[1734868778125,0.06356636,97152.0,97151.0,0.00024151]
[1734868778537,0.06056636,97152.0,97151.0,0.00024151]
[1734868778956,0.06156636,97152.0,97151.0,0.00024151]
[1734868779840,0.06356636,97152.0,97151.0,0.00024151]
[1734868784523,0.06356636,97152.0,97151.0,0.08418708]
[1734868784757,0.05302923,97152.0,97151.0,0.12918708]
[1734868784986,0.05302923,97152.0,97151.0,0.13578559]
[1734868785493,0.05302923,97152.0,97151.0,0.23578559]
[1734868786340,0.05302923,97152.0,97151.0,0.33709399]
[1734868786851,0.001,97152.0,97151.0,0.33709399]
[1734868787028,0.02019481,97152.0,97151.0,0.33709399]
[1734868787604,0.02019481,97152.0,97151.0,0.34309399]
[1734868787806,0.01919481,97152.0,97151.0,0.34309399]
[1734868788028,0.02019481,97152.0,97151.0,0.34309399]
[1734868788379,0.02019481,97152.0,97151.0,0.33709399]
[1734868788598,0.02019481,97152.0,97151.0,0.34609399]
[1734868788858,0.02019481,97152.0,97151.0,0.35109399]
[1734868790450,0.0509065,97152.0,97151.0,0.35109399]
[1734868790877,0.02019481,97152.0,97151.0,0.35109399]
[1734868791218,0.02019481,97152.0,97151.0,0.14978559]
[1734868791951,0.0509065,97152.0,97151.0,0.14978559]
[1734868792658,0.0509065,97152.0,97151.0,0.10478559]
[1734868792863,0.0509065,97152.0,97151.0,0.20478559]
[1734868799715,0.02019481,97152.0,97151.0,0.20478559]
[1734868801375,0.0509065,97152.0,97151.0,0.20478559]
[1734868801760,0.02019481,97152.0,97151.0,0.20478559]
[1734868807093,0.02019481,97152.0,97151.0,0.30609399]
[1734868808068,0.02019481,97152.0,97151.0,0.35439399]
[1734868808791,0.001,97152.0,97151.0,0.35439399]
[1734868811261,0.001,97152.0,97151.0,0.10478559]
[1734868811577,0.02022848,97152.0,97151.0,0.02288559]
[1734868811901,0.02022848,97152.0,97151.0,0.12288559]
[1734868811902,0.05094017,97152.0,97151.0,0.12288559]
[1734868812639,0.05094017,97152.0,97151.0,0.02288559]
[1734868814071,0.05094017,97152.0,97151.0,0.02084002]
[1734868815121,0.04994017,97152.0,97151.0,0.01184002]
[1734868815476,0.04994017,97152.0,97151.0,0.00888559]
[1734868815689,0.04994017,97152.0,97151.0,0.01088559]
[1734868815885,0.04994017,97152.0,97151.0,0.01488559]
[1734868816207,0.04994017,97152.0,97151.0,0.01084002]
[1734868816528,0.04994017,97152.0,97151.0,0.01184002]
[1734868816911,0.04994017,97152.0,97151.0,0.01084002]
[1734868818027,0.04994017,97152.0,97151.0,0.00684002]
[1734868818279,0.04994017,97152.0,97151.0,0.00784002]
[1734868818473,0.04994017,97152.0,97151.0,0.00988559]
[1734868818706,0.04994017,97152.0,97151.0,0.00684002]
[1734868818877,0.04994017,97152.0,97151.0,0.00784002]
[1734868819865,0.09774017,97152.0,97151.0,0.00784002]
[1734868820615,0.09774017,97152.0,97151.0,0.00124151]
[1734868820815,0.0478,97152.0,97151.0,0.00124151]
[1734868821070,0.205862,97152.0,97151.0,0.00124151]
[1734868821285,0.40585026,97152.0,97151.0,0.00124151]
[1734868821485,0.2103615,97152.0,97151.0,0.00124151]
[1734868822071,0.2113615,97152.0,97151.0,0.00124151]
[1734868822279,0.0613615,97152.0,97151.0,0.00124151]
[1734868822494,0.0613615,97152.0,97151.0,0.00024151]
[1734868822690,0.0603615,97152.0,97151.0,0.00024151]
[1734868822886,0.0613615,97152.0,97151.0,0.00024151]
[1734868827439,0.0613615,97152.0,97151.0,0.00692749]
[1734868830298,0.0613615,97152.0,97151.0,0.00897306]
[1734868830676,0.05098826,97152.0,97151.0,0.00897306]
[1734868831073,0.05098826,97152.0,97151.0,0.18687306]
[1734868831933,0.02022625,97152.0,97151.0,0.18687306]
[1734868832652,0.01922625,97152.0,97151.0,0.18687306]
[1734868832988,0.02022625,97152.0,97151.0,0.18687306]
[1734868833675,0.01922625,97152.0,97151.0,0.18687306]
[1734868834270,0.04998826,97152.0,97151.0,0.18687306]
[1734868834701,0.04998826,97152.0,97151.0,0.18787306]
[1734868835134,0.04998826,97152.0,97151.0,0.10997306]
[1734868835956,0.04998826,97152.0,97151.0,0.10897306]
[1734868837364,0.04998826,97152.0,97151.0,0.10997306]
[1734868837682,0.04998826,97152.0,97151.0,0.10897306]
[1734868838095,0.04998826,97152.0,97151.0,0.10997306]
[1734868845923,0.04998826,97152.0,97151.0,0.18707306]
[1734868846745,0.04998826,97152.0,97151.0,0.18677306]
[1734868856687,0.01922625,97152.0,97151.0,0.33488146]
[1734868857056,0.01922625,97152.0,97151.0,1.09877473]
[1734868857207,0.01922625,97152.0,97151.0,1.09777473]
[1734868857555,0.01922625,97170.0,97169.0,0.10204557]
[1734868857765,0.01922625,97170.0,97169.0,0.27855397]
[1734868857892,0.01922625,97170.0,97169.0,0.28541622]
[1734868858716,0.01922625,97170.0,97169.0,0.33471622]
[1734868860526,0.01922625,97170.0,97169.0,0.33971622]
[1734868860727,0.01922625,97170.0,97169.0,0.33471622]
[1734868860939,0.01922625,97170.0,97169.0,0.18410782]
[1734868861351,0.01922625,97170.0,97169.0,0.18910782]
[1734868861549,0.01922625,97170.0,97169.0,0.08910782]
[1734868861750,0.01922625,97170.0,97169.0,0.18410782]
[1734868862035,0.01922625,97170.0,97169.0,0.18910782]
[1734868862437,0.01922625,97170.0,97169.0,0.19110782]
[1734868862657,0.01922625,97170.0,97169.0,0.11590782]
[1734868862835,0.01922625,97170.0,97169.0,0.11390782]
[1734868863234,0.01922625,97170.0,97169.0,0.01390782]
[1734868863450,0.01922625,97170.0,97169.0,0.11590782]
[1734868864821,0.0001716,97171.0,97170.0,0.1]
[1734868865052,0.0001716,97171.0,97170.0,0.10102897]
[1734868865252,0.0001716,97171.0,97170.0,0.10785037]
[1734868865412,0.0001716,97171.0,97170.0,0.10989594]
[1734868867719,0.0001716,97171.0,97170.0,0.11286697]
[1734868867950,0.0001716,97171.0,97170.0,0.62942697]
[1734868870074,0.01940142,97171.0,97170.0,0.62942697]
[1734868872550,0.0001716,97171.0,97170.0,0.62942697]
[1734868873872,0.01940142,97171.0,97170.0,0.62942697]
[1734868878770,0.01940142,97171.0,97170.0,0.62928238]
[1734868879483,0.01940142,97171.0,97170.0,0.52928238]
[1734868880107,0.01940142,97171.0,97170.0,0.62928238]
[1734868885847,0.01940142,97171.0,97170.0,0.80929078]
[1734868886478,0.01940142,97171.0,97170.0,0.95529078]
[1734868887519,0.01940142,97171.0,97170.0,0.94929078]
[1734868887657,0.01940142,97171.0,97170.0,1.05511478]
[1734868887858,0.01940142,97171.0,97170.0,1.06011478]
[1734868888702,0.01940142,97171.0,97170.0,0.93541478]
[1734868888883,0.01940142,97171.0,97170.0,0.93941478]
[1734868889078,0.01940142,97171.0,97170.0,0.93441478]
[1734868889285,0.01940142,97171.0,97170.0,0.93041478]
[1734868889486,0.02040142,97171.0,97170.0,0.94441478]
[1734868889848,0.02040142,97171.0,97170.0,0.84441478]
[1734868890047,0.02040142,97171.0,97170.0,0.94441478]
[1734868904811,0.02040142,97171.0,97170.0,0.94450048]
[1734868905028,0.02040142,97171.0,97170.0,1.02080048]
[1734868907802,0.02040142,97171.0,97170.0,1.15975965]
[1734868908987,0.02040142,97171.0,97170.0,1.02080048]
[1734868915616,0.02040142,97171.0,97170.0,1.12080048]
[1734868915819,0.02040142,97171.0,97170.0,1.16820048]
[1734868916028,0.0011716,97171.0,97170.0,1.26820048]
[1734868921782,0.0011716,97171.0,97170.0,1.28898438]